[Event "HUN-ch U8-U18 2019"]
[Site "Balatonlelle"]
[Date "2019.06.23"]
[Round "3.33"]
[White "Havasi, Gergely Bulcsu"]
[Black "Csontos, Aron"]
[Result "1/2-1/2"]
[ECO "D02"]
[WhiteElo "1486"]
[BlackElo "1376"]
[Annotator "NA"]
[PlyCount "53"]
[EventDate "2019.06.21"]
[EventType "swiss"]
[EventCountry "HUN"]
[SourceTitle "playchess.com"]
[Source "ChessBase"]
[SourceQuality "1"]
[TimeControl "40/5400+30:1800+30"]

1. d4 {[%emt 0:00:01]} d5 {[%emt 0:00:12]} 2. Bf4 {[%emt 0:00:19]} Nf6 {[%emt 0:00:14]} 3. Nf3 {[%emt 0:00:42]} c5 {[%emt 0:00:09]} 4. c3 {[%emt 0:00:37]} Nc6 {[%emt 0:00:14]} 5. e3 {[%emt 0:00:31]} Qb6 {[%emt 0:00:07]} 6. Qb3 {[%emt 0:00:23]} c4 {[%emt 0:00:08]} 7. Qc2 {[%emt 0:01:10]} Bf5 {[%emt 0:00:21]} 8. Qd2 {[%emt 0:00:49]} Ne4 {[%emt 0:02:49]} 9. Qe2 {[%emt 0:00:40]} Bg4 {[%emt 0:00:34]} 10. h3 {[%emt 0:00:31]} Bxf3 {[%emt 0:00:28]} 11. gxf3 {[%emt 0:00:12]} Nf6 {[%emt 0:00:29]} 12. e4 {[%emt 0:00:59]} e6 {[%emt 0:01:13]} 13. e5 {[%emt 0:02:19]} Nd7 {[%emt 0:01:48]} 14. Bg2 {[%emt 0:02:36]} Be7 {[%emt 0:01:51]} 15. h4 {[%emt 0:02:06]} h6 {[%emt 0:01:34]} 16. h5 {[%emt 0:01:09]} Qc7 {[%emt 0:01:47]} 17. Qe3 {[%emt 0:01:20]} b5 {[%emt 0:02:11]} 18. a3 {[%emt 0:00:38]} a5 {[%emt 0:02:30]} 19. Bh3 {[%emt 0:01:53]} O-O-O {[%emt 0:02:04]} 20. Nd2 {[%emt 0:00:33]} a4 {[%emt 0:00:29]} 21. Bg4 {[%emt 0:01:24]} Na5 {[%emt 0:01:09]} 22. Qe2 {[%emt 0:01:08]} Kb7 {[%emt 0:00:55]} 23. Nf1 {[%emt 0:03:01]} Nb3 {[%emt 0:00:42]} 24. Rb1 {[%emt 0:00:17]} Qa5 {[%emt 0:02:28]} 25. Ne3 {[%emt 0:00:30]} Nxd4 {[%emt 0:00:13]} 26. Qd1 {[%emt 0:00:55]} Nb3 {[%emt 0:00:33]} 27. Nc2 {[%emt 0:02:44]} 1/2-1/2

[Event "HUN-ch U8-U18 2019"]
[Site "Balatonlelle"]
[Date "2019.06.23"]
[Round "3.34"]
[White "Gencsi, David Sandor"]
[Black "Kovacs, Kristof"]
[Result "0-1"]
[ECO "C48"]
[WhiteElo "1038"]
[BlackElo "1435"]
[Annotator "NA"]
[PlyCount "138"]
[EventDate "2019.06.21"]
[EventType "swiss"]
[EventCountry "HUN"]
[SourceTitle "playchess.com"]
[Source "ChessBase"]
[SourceQuality "1"]
[TimeControl "40/5400+30:1800+30"]

1. e4 {[%emt 0:00:03]} e5 {[%emt 0:00:05]} 2. Nf3 {[%emt 0:00:06]} Nc6 {[%emt 0:00:03]} 3. Nc3 {[%emt 0:00:14]} Nf6 {[%emt 0:00:08]} 4. Bb5 {[%emt 0:00:10]} d6 {[%emt 0:00:20]} 5. d4 {[%emt 0:00:16]} exd4 {[%emt 0:01:05]} 6. Nxd4 {[%emt 0:00:14]} Bd7 {[%emt 0:00:21]} 7. Bg5 {[%emt 0:01:36]} Be7 {[%emt 0:01:12]} 8. O-O {[%emt 0:01:12]} O-O {[%emt 0:00:08]} 9. Bxc6 {[%emt 0:02:34]} bxc6 {[%emt 0:00:12]} 10. f4 {[%emt 0:01:16]} Ng4 {[%emt 0:02:10]} 11. Qf3 {[%emt 0:01:51]} Bxg5 {[%emt 0:00:18]} 12. fxg5 {[%emt 0:00:53]} Qxg5 {[%emt 0:01:02]} 13. h3 {[%emt 0:00:47]} Ne3 {[%emt 0:00:29]} 14. Rf2 {[%emt 0:01:11]} Nc4 {[%emt 0:01:26]} 15. b3 {[%emt 0:01:51]} Ne5 {[%emt 0:00:37]} 16. Qf4 {[%emt 0:00:24]} Qg6 {[%emt 0:00:35]} 17. Nf5 {[%emt 0:01:15]} Bxf5 {[%emt 0:00:18]} 18. Qxf5 {[%emt 0:00:18]} Qxf5 19. Rxf5 {[%emt 0:00:11]} g6 {[%emt 0:01:02]} 20. Rf4 {[%emt 0:00:35]} Kg7 {[%emt 0:00:48]} 21. Kf2 {[%emt 0:00:35]} f6 {[%emt 0:00:32]} 22. Ke2 {[%emt 0:00:21]} Rf7 {[%emt 0:00:06]} 23. Raf1 {[%emt 0:00:42]} Raf8 {[%emt 0:00:12]} 24. g4 {[%emt 0:00:27]} Rh8 {[%emt 0:00:54]} 25. h4 {[%emt 0:00:57]} h5 {[%emt 0:00:17]} 26. g5 {[%emt 0:01:24]} fxg5 {[%emt 0:00:12]} 27. hxg5 {[%emt 0:00:11]} Rxf4 {[%emt 0:00:09]} 28. Rxf4 {[%emt 0:00:20]} Rf8 {[%emt 0:00:16]} 29. Rxf8 {[%emt 0:00:08]} Kxf8 {[%emt 0:00:02]} 30. Kf2 {[%emt 0:00:15]} Ke7 {[%emt 0:00:08]} 31. Kg3 {[%emt 0:00:29]} Ke6 {[%emt 0:00:07]} 32. Kf4 {[%emt 0:00:33]} Nd7 {[%emt 0:00:25]} 33. a4 {[%emt 0:00:23]} a5 {[%emt 0:00:14]} 34. Na2 {[%emt 0:00:14]} c5 {[%emt 0:00:08]} 35. c3 {[%emt 0:00:17]} Nb6 {[%emt 0:00:08]} 36. b4 {[%emt 0:00:23]} axb4 {[%emt 0:00:06]} 37. cxb4 {[%emt 0:00:20]} Nxa4 {[%emt 0:00:12]} 38. bxc5 {[%emt 0:01:30]} Nxc5 {[%emt 0:00:04]} 39. Nc3 {[%emt 0:00:15]} Nd3+ {[%emt 0:00:06]} 40. Ke3 {[%emt 0:00:00]} Nc5 {[%emt 0:00:00]} 41. Nd5 {[%emt 0:00:47]} c6 {[%emt 0:00:23]} 42. Nf6 {[%emt 0:00:26]} Ke5 {[%emt 0:00:09]} 43. Nh7 {[%emt 0:00:34]} Nxe4 {[%emt 0:00:10]} 44. Kf3 {[%emt 0:01:53]} Kf5 {[%emt 0:00:06]} 45. Nf8 {[%emt 0:00:40]} Nxg5+ {[%emt 0:00:03]} 46. Kg3 {[%emt 0:00:25]} c5 {[%emt 0:00:09]} 47. Nd7 {[%emt 0:00:05]} c4 {[%emt 0:00:04]} 48. Nb6 {[%emt 0:00:20]} c3 {[%emt 0:00:05]} 49. Nc4 {[%emt 0:01:01]} Ne4+ {[%emt 0:00:46]} 50. Kg2 {[%emt 0:00:25]} Kf4 {[%emt 0:00:08]} 51. Na3 {[%emt 0:00:18]} d5 {[%emt 0:00:08]} 52. Nc2 {[%emt 0:00:19]} g5 {[%emt 0:00:14]} 53. Kf1 {[%emt 0:00:11]} h4 {[%emt 0:00:02]} 54. Kg1 {[%emt 0:00:12]} g4 {[%emt 0:00:06]} 55. Kh2 {[%emt 0:00:03]} g3+ {[%emt 0:00:08]} 56. Kg2 {[%emt 0:00:08]} Kg4 {[%emt 0:00:02]} 57. Ne3+ {[%emt 0:00:28]} Kg5 {[%emt 0:00:06]} 58. Nc2 {[%emt 0:00:37]} Kf5 {[%emt 0:00:02]} 59. Ne3+ {[%emt 0:00:26]} Ke5 {[%emt 0:00:07]} 60. Nc2 {[%emt 0:00:38]} d4 {[%emt 0:00:05]} 61. Ne1 {[%emt 0:00:27]} Kf4 {[%emt 0:00:12]} 62. Nd3+ {[%emt 0:00:10]} Ke3 {[%emt 0:00:06]} 63. Nc1 {[%emt 0:00:07]} d3 {[%emt 0:00:04]} 64. Nb3 {[%emt 0:00:31]} c2 {[%emt 0:00:05]} 65. Nc5 {[%emt 0:00:14]} c1=Q {[%emt 0:00:11]} 66. Nxd3 {[%emt 0:00:20]} Kxd3 67. Kh3 {[%emt 0:00:08]} g2 {[%emt 0:00:21]} 68. Kxh4 {[%emt 0:00:14]} g1=Q {[%emt 0:00:05]} 69. Kh3 {[%emt 0:00:31]} Qh6# {[%emt 0:00:07]} 0-1

[Event "HUN-ch U8-U18 2019"]
[Site "Balatonlelle"]
[Date "2019.06.23"]
[Round "3.35"]
[White "Deak-Sala, Daniel"]
[Black "Biro, Daniel"]
[Result "0-1"]
[ECO "C15"]
[WhiteElo "1008"]
[BlackElo "1343"]
[Annotator "NA"]
[PlyCount "102"]
[EventDate "2019.06.21"]
[EventType "swiss"]
[EventCountry "HUN"]
[SourceTitle "playchess.com"]
[Source "ChessBase"]
[SourceQuality "1"]
[TimeControl "40/5400+30:1800+30"]

1. e4 {[%emt 0:00:04]} e6 {[%emt 0:00:04]} 2. d4 {[%emt 0:00:06]} d5 {[%emt 0:00:04]} 3. Nc3 {[%emt 0:00:13]} Bb4 {[%emt 0:00:31]} 4. Nge2 {[%emt 0:00:20]} dxe4 {[%emt 0:01:18]} 5. a3 {[%emt 0:00:16]} Be7 {[%emt 0:07:45]} 6. Nxe4 {[%emt 0:00:35]} Nf6 {[%emt 0:03:41]} 7. N2c3 {[%emt 0:01:23]} Nxe4 {[%emt 0:04:06]} 8. Nxe4 {[%emt 0:00:47]} c5 {[%emt 0:04:50]} 9. Be3 {[%emt 0:03:18]} cxd4 {[%emt 0:01:32]} 10. Qxd4 {[%emt 0:03:17]} Qxd4 11. Bxd4 {[%emt 0:00:08]} O-O {[%emt 0:02:09]} 12. O-O-O {[%emt 0:00:08]} Nc6 {[%emt 0:00:55]} 13. Bc5 {[%emt 0:00:47]} Bxc5 {[%emt 0:01:05]} 14. Nxc5 {[%emt 0:00:11]} b6 {[%emt 0:01:08]} 15. Nb3 {[%emt 0:00:41]} Bb7 {[%emt 0:01:54]} 16. Bd3 {[%emt 0:01:26]} Rac8 {[%emt 0:03:04]} 17. f3 {[%emt 0:03:47]} Rc7 {[%emt 0:04:55]} 18. Rd2 {[%emt 0:03:27]} Rfc8 {[%emt 0:02:17]} 19. Rhd1 {[%emt 0:00:31]} g6 {[%emt 0:01:29]} 20. Be4 {[%emt 0:00:53]} Kg7 {[%emt 0:02:17]} 21. Rd7 {[%emt 0:00:58]} Ba6 {[%emt 0:03:28]} 22. Rxc7 Rxc7 {[%emt 0:00:27]} 23. Bd3 {[%emt 0:01:16]} Bxd3 {[%emt 0:00:50]} 24. Rxd3 {[%emt 0:00:10]} Ne5 {[%emt 0:00:41]} 25. Rc3 {[%emt 0:00:32]} Rxc3 {[%emt 0:02:50]} 26. bxc3 {[%emt 0:00:11]} h5 {[%emt 0:02:04]} 27. Kd1 {[%emt 0:00:18]} Nc4 {[%emt 0:00:18]} 28. Ke2 {[%emt 0:01:25]} Nxa3 {[%emt 0:01:57]} 29. Kd3 {[%emt 0:00:15]} Nb5 {[%emt 0:00:15]} 30. c4 {[%emt 0:00:29]} Nd6 {[%emt 0:00:31]} 31. Kd4 {[%emt 0:00:21]} Kf6 {[%emt 0:01:32]} 32. h3 {[%emt 0:00:03]} h4 {[%emt 0:00:43]} 33. f4 {[%emt 0:00:40]} Kf5 {[%emt 0:01:23]} 34. Ke3 {[%emt 0:01:21]} Nxc4+ {[%emt 0:00:17]} 35. Kf3 {[%emt 0:00:36]} e5 {[%emt 0:01:19]} 36. fxe5 {[%emt 0:00:44]} Nxe5+ {[%emt 0:00:29]} 37. Ke3 {[%emt 0:00:12]} Nc6 {[%emt 0:02:08]} 38. g4+ {[%emt 0:00:33]} hxg3 {[%emt 0:00:13]} 39. Kf3 {[%emt 0:00:03]} Ke5 {[%emt 0:01:30]} 40. Kxg3 {[%emt 0:00:00]} Nd4 {[%emt 0:00:00]} 41. Na1 {[%emt 0:00:25]} b5 {[%emt 0:01:14]} 42. Kg4 {[%emt 0:00:13]} f5+ {[%emt 0:00:52]} 43. Kg5 {[%emt 0:00:33]} f4 {[%emt 0:00:11]} 44. Kxg6 {[%emt 0:00:18]} f3 {[%emt 0:00:18]} 45. h4 {[%emt 0:00:01]} f2 {[%emt 0:00:08]} 46. h5 {[%emt 0:00:05]} f1=Q {[%emt 0:00:15]} 47. h6 {[%emt 0:00:08]} Qf6+ {[%emt 0:00:08]} 48. Kh7 {[%emt 0:00:13]} Qf7+ {[%emt 0:00:30]} 49. Kh8 {[%emt 0:00:08]} Ne6 {[%emt 0:00:25]} 50. c4 {[%emt 0:00:18]} Nf8 {[%emt 0:00:24]} 51. cxb5 {[%emt 0:00:16]} Qh7# 0-1

[Event "HUN-ch U8-U18 2019"]
[Site "Balatonlelle"]
[Date "2019.06.23"]
[Round "3.36"]
[White "Havasi, Mate Pal"]
[Black "Nagy, Levente"]
[Result "0-1"]
[ECO "B34"]
[WhiteElo "1325"]
[BlackElo "2092"]
[Annotator "NA"]
[PlyCount "106"]
[EventDate "2019.06.21"]
[EventType "swiss"]
[EventCountry "HUN"]
[SourceTitle "playchess.com"]
[Source "ChessBase"]
[SourceQuality "1"]
[TimeControl "40/5400+30:1800+30"]

1. e4 {[%emt 0:00:01]} c5 {[%emt 0:00:33]} 2. Nf3 {[%emt 0:00:08]} Nc6 {[%emt 0:00:41]} 3. Nc3 {[%emt 0:00:14]} g6 {[%emt 0:00:38]} 4. d4 {[%emt 0:02:18]} cxd4 {[%emt 0:01:16]} 5. Nxd4 {[%emt 0:01:31]} Bg7 {[%emt 0:01:07]} 6. Be3 {[%emt 0:00:29]} Nf6 {[%emt 0:00:48]} 7. Nxc6 {[%emt 0:01:18]} bxc6 {[%emt 0:01:05]} 8. Bd3 {[%emt 0:00:19]} O-O {[%emt 0:00:51]} 9. O-O d6 10. h3 {[%emt 0:02:00]} d5 {[%emt 0:02:06]} 11. exd5 {[%emt 0:01:54]} cxd5 {[%emt 0:01:59]} 12. Bd4 {[%emt 0:02:00]} Re8 {[%emt 0:01:36]} 13. Bxf6 {[%emt 0:02:39]} Bxf6 {[%emt 0:01:41]} 14. Qf3 {[%emt 0:00:56]} Bb7 {[%emt 0:01:45]} 15. Bb5 {[%emt 0:00:57]} Rf8 {[%emt 0:01:23]} 16. Rad1 {[%emt 0:01:35]} e6 {[%emt 0:01:46]} 17. Rfe1 {[%emt 0:02:41]} Bg7 {[%emt 0:02:11]} 18. Bf1 {[%emt 0:04:49]} Qc7 {[%emt 0:01:16]} 19. Qg3 {[%emt 0:01:07]} Qc5 {[%emt 0:03:42]} 20. Qe3 d4 21. Na4 {[%emt 0:02:23]} Qxc2 {[%emt 0:01:47]} 22. Qb3 {[%emt 0:00:21]} Qxb3 {[%emt 0:00:41]} 23. axb3 {[%emt 0:00:14]} Bd5 {[%emt 0:01:19]} 24. Bc4 {[%emt 0:01:15]} Bxc4 {[%emt 0:01:09]} 25. bxc4 {[%emt 0:01:16]} Rac8 {[%emt 0:01:25]} 26. b3 {[%emt 0:02:59]} Rb8 {[%emt 0:02:49]} 27. Rd3 {[%emt 0:00:13]} Rfe8 {[%emt 0:01:21]} 28. f3 {[%emt 0:00:19]} e5 {[%emt 0:00:53]} 29. Nc5 {[%emt 0:00:53]} Kh8 {[%emt 0:02:03]} 30. Na6 {[%emt 0:02:50]} Rb6 {[%emt 0:01:40]} 31. Nc7 {[%emt 0:00:33]} Reb8 {[%emt 0:02:28]} 32. Rb1 {[%emt 0:01:03]} a5 {[%emt 0:00:29]} 33. Nb5 {[%emt 0:00:25]} f5 {[%emt 0:02:57]} 34. Re1 {[%emt 0:00:22]} Ra6 {[%emt 0:00:51]} 35. Nc7 {[%emt 0:00:24]} Rc6 {[%emt 0:01:04]} 36. Nb5 {[%emt 0:01:45]} Ra8 {[%emt 0:00:39]} 37. Ra1 {[%emt 0:02:03]} a4 {[%emt 0:00:54]} 38. Kf2 {[%emt 0:01:30]} e4 {[%emt 0:01:22]} 39. fxe4 {[%emt 0:00:32]} fxe4 {[%emt 0:00:16]} 40. Rdd1 {[%emt 0:00:22]} e3+ {[%emt 0:00:43]} 41. Ke2 {[%emt 0:30:35]} d3+ {[%emt 0:30:06]} 42. Rxd3 {[%emt 0:00:00]} Bxa1 {[%emt 0:00:00]} 43. bxa4 {[%emt 0:00:00]} Rxa4 {[%emt 0:00:00]} 44. Rxe3 {[%emt 0:00:00]} Rcxc4 {[%emt 0:00:00]} 45. Nd6 {[%emt 0:00:00]} Ra2+ {[%emt 0:00:00]} 46. Kf3 {[%emt 0:00:00]} Rc3 {[%emt 0:00:00]} 47. Rxc3 {[%emt 0:00:00]} Bxc3 {[%emt 0:00:00]} 48. Ne4 {[%emt 0:00:00]} Kg7 {[%emt 0:00:00]} 49. Kg3 {[%emt 0:00:00]} Be5+ {[%emt 0:00:00]} 50. Kf3 {[%emt 0:00:00]} Ra3+ {[%emt 0:00:00]} 51. Ke2 {[%emt 0:00:00]} Bf4 {[%emt 0:00:00]} 52. Nf2 {[%emt 0:00:00]} Re3+ {[%emt 0:00:00]} 53. Kf1 {[%emt 0:00:00]} Bg3 {[%emt 0:00:00]} 0-1

[Event "HUN-ch U8-U18 2019"]
[Site "Balatonlelle"]
[Date "2019.06.24"]
[Round "4.1"]
[White "Kiraly, Lilla Virag"]
[Black "Markus, Molli Amina"]
[Result "0-1"]
[ECO "B23"]
[WhiteElo "1557"]
[BlackElo "1755"]
[Annotator "NA"]
[PlyCount "66"]
[EventDate "2019.06.21"]
[EventType "swiss"]
[EventCountry "HUN"]
[SourceTitle "playchess.com"]
[Source "ChessBase"]
[SourceQuality "1"]
[TimeControl "40/5400+30:1800+30"]

1. e4 {[%emt 0:00:04]} c5 {[%emt 0:00:28]} 2. Nc3 {[%emt 0:00:15]} e6 {[%emt 0:00:40]} 3. g3 {[%emt 0:00:33]} d5 {[%emt 0:01:21]} 4. d3 {[%emt 0:01:28]} a6 {[%emt 0:03:07]} 5. Bg2 {[%emt 0:00:40]} d4 {[%emt 0:03:08]} 6. Nce2 {[%emt 0:00:49]} Nc6 {[%emt 0:01:48]} 7. f4 {[%emt 0:01:34]} Nf6 {[%emt 0:01:04]} 8. Nf3 {[%emt 0:02:16]} Be7 {[%emt 0:01:54]} 9. O-O {[%emt 0:03:35]} Rb8 {[%emt 0:02:41]} 10. Re1 {[%emt 0:11:12]} b5 {[%emt 0:08:52]} 11. e5 {[%emt 0:06:39]} Nd5 {[%emt 0:01:00]} 12. c4 {[%emt 0:11:08]} dxc3 {[%emt 0:06:21]} 13. bxc3 {[%emt 0:05:37]} Bb7 {[%emt 0:02:33]} 14. d4 {[%emt 0:11:26]} cxd4 {[%emt 0:01:58]} 15. cxd4 {[%emt 0:03:26]} O-O {[%emt 0:02:22]} 16. Bd2 {[%emt 0:08:10]} Rc8 {[%emt 0:02:57]} 17. Qb3 {[%emt 0:09:51]} Qb6 {[%emt 0:02:17]} 18. Kh1 {[%emt 0:02:28]} Rfd8 {[%emt 0:00:54]} 19. Red1 {[%emt 0:01:03]} a5 {[%emt 0:02:58]} 20. Rab1 {[%emt 0:02:34]} Ba6 {[%emt 0:03:47]} 21. Be1 {[%emt 0:04:49]} a4 {[%emt 0:03:48]} 22. Qb2 {[%emt 0:01:09]} a3 {[%emt 0:10:53]} 23. Qb3 {[%emt 0:00:37]} b4 {[%emt 0:00:34]} 24. Rd2 {[%emt 0:03:49]} Na5 {[%emt 0:01:43]} 25. Qd1 {[%emt 0:03:56]} Ne3 {[%emt 0:01:06]} 26. Qa4 {[%emt 0:01:03]} Bb5 {[%emt 0:01:50]} 27. Rxb4 {[%emt 0:00:46]} Bxb4 {[%emt 0:00:32]} 28. Qxb4 {[%emt 0:00:16]} Nxg2 {[%emt 0:04:33]} 29. Kxg2 {[%emt 0:00:25]} Qa6 {[%emt 0:00:38]} 30. Nc3 {[%emt 0:01:06]} Bc6 {[%emt 0:00:32]} 31. Qxa3 {[%emt 0:00:58]} Bxf3+ {[%emt 0:00:25]} 32. Kxf3 {[%emt 0:00:15]} Qc6+ {[%emt 0:00:06]} 33. Ne4 {[%emt 0:01:29]} Nc4 {[%emt 0:00:13]} 0-1

[Event "HUN-ch U8-U18 2019"]
[Site "Balatonlelle"]
[Date "2019.06.24"]
[Round "4.1"]
[White "Toth, Kincso"]
[Black "Gombocz, Zsofia"]
[Result "0-1"]
[ECO "C54"]
[WhiteElo "1494"]
[BlackElo "2077"]
[Annotator "NA"]
[PlyCount "84"]
[EventDate "2019.06.21"]
[EventType "swiss"]
[EventCountry "HUN"]
[SourceTitle "playchess.com"]
[Source "ChessBase"]
[SourceQuality "1"]
[TimeControl "40/5400+30:1800+30"]

1. e4 {[%emt 0:00:05]} e5 {[%emt 0:00:06]} 2. Nf3 {[%emt 0:00:10]} Nc6 {[%emt 0:00:24]} 3. Bc4 {[%emt 0:00:27]} Bc5 {[%emt 0:00:18]} 4. c3 {[%emt 0:00:52]} Nf6 {[%emt 0:00:13]} 5. d3 {[%emt 0:00:41]} a6 {[%emt 0:01:40]} 6. Bb3 {[%emt 0:02:01]} Ba7 {[%emt 0:04:09]} 7. h3 {[%emt 0:04:18]} d5 {[%emt 0:03:11]} 8. exd5 {[%emt 0:04:29]} Nxd5 {[%emt 0:00:08]} 9. O-O {[%emt 0:02:45]} O-O {[%emt 0:07:11]} 10. Re1 {[%emt 0:06:29]} Re8 {[%emt 0:03:57]} 11. Na3 {[%emt 0:06:20]} f6 {[%emt 0:05:10]} 12. Nc4 {[%emt 0:06:05]} Be6 {[%emt 0:01:41]} 13. Ne3 {[%emt 0:03:47]} Nf4 {[%emt 0:05:12]} 14. Bc2 {[%emt 0:06:35]} Qd7 {[%emt 0:03:53]} 15. Nc4 {[%emt 0:10:20]} Nd5 {[%emt 0:05:38]} 16. Bd2 {[%emt 0:09:24]} Rad8 {[%emt 0:03:34]} 17. Be3 {[%emt 0:03:15]} b5 {[%emt 0:03:55]} 18. Bxa7 {[%emt 0:03:19]} Nxa7 {[%emt 0:01:30]} 19. Ne3 {[%emt 0:01:15]} Nf4 {[%emt 0:08:57]} 20. d4 {[%emt 0:04:07]} Qc6 {[%emt 0:11:14]} 21. Bb3 {[%emt 0:06:46]} e4 {[%emt 0:03:32]} 22. Nh2 {[%emt 0:01:52]} Kh8 {[%emt 0:05:08]} 23. Bxe6 {[%emt 0:01:52]} Qxe6 {[%emt 0:02:23]} 24. Qg4 {[%emt 0:02:56]} Nd3 {[%emt 0:03:07]} 25. Re2 {[%emt 0:02:05]} Qxg4 {[%emt 0:04:14]} 26. Nhxg4 {[%emt 0:01:14]} h5 {[%emt 0:01:25]} 27. Nh2 {[%emt 0:00:17]} Nc6 {[%emt 0:00:31]} 28. Nhf1 {[%emt 0:01:55]} g6 {[%emt 0:01:02]} 29. g3 {[%emt 0:02:49]} f5 {[%emt 0:02:38]} 30. Ng2 {[%emt 0:01:09]} g5 {[%emt 0:02:46]} 31. h4 {[%emt 0:02:01]} f4 {[%emt 0:00:57]} 32. Rd2 {[%emt 0:00:54]} Rg8 {[%emt 0:01:34]} 33. Kh2 {[%emt 0:00:41]} Rdf8 {[%emt 0:01:22]} 34. Rad1 {[%emt 0:00:47]} Ne7 {[%emt 0:01:25]} 35. hxg5 {[%emt 0:01:14]} Rxg5 {[%emt 0:00:28]} 36. Ne1 {[%emt 0:00:22]} fxg3+ {[%emt 0:00:52]} 37. Nxg3 {[%emt 0:00:18]} Nxf2 {[%emt 0:00:10]} 38. Rc1 {[%emt 0:00:31]} Ng4+ {[%emt 0:00:34]} 39. Kh3 {[%emt 0:00:35]} Nf2+ {[%emt 0:01:28]} 40. Kh2 {[%emt 0:00:00]} h4 {[%emt 0:00:00]} 41. Ne2 {[%emt 0:05:26]} Nd5 {[%emt 0:05:41]} 42. Ng2 {[%emt 0:01:54]} h3 {[%emt 0:03:19]} 0-1

[Event "HUN-ch U8-U18 2019"]
[Site "Balatonlelle"]
[Date "2019.06.24"]
[Round "4.2"]
[White "Ivan, Reka Gyongyver"]
[Black "Pasti, Anna"]
[Result "1/2-1/2"]
[ECO "D00"]
[WhiteElo "1619"]
[BlackElo "1955"]
[Annotator "NA"]
[PlyCount "118"]
[EventDate "2019.06.21"]
[EventType "swiss"]
[EventCountry "HUN"]
[SourceTitle "playchess.com"]
[Source "ChessBase"]
[SourceQuality "1"]
[TimeControl "40/5400+30:1800+30"]

1. d4 {[%emt 0:00:03]} d5 {[%emt 0:00:13]} 2. Bf4 {[%emt 0:00:10]} c5 {[%emt 0:00:07]} 3. e3 {[%emt 0:00:12]} Nc6 {[%emt 0:00:08]} 4. c3 {[%emt 0:00:21]} Nf6 {[%emt 0:00:05]} 5. Nd2 {[%emt 0:00:16]} Bf5 {[%emt 0:00:11]} 6. Ngf3 {[%emt 0:00:11]} Nh5 {[%emt 0:02:46]} 7. Nh4 {[%emt 0:08:48]} Nxf4 {[%emt 0:00:52]} 8. Nxf5 {[%emt 0:00:14]} Ng6 {[%emt 0:00:59]} 9. Bd3 {[%emt 0:01:52]} e6 {[%emt 0:04:37]} 10. Ng3 {[%emt 0:00:18]} Bd6 {[%emt 0:00:35]} 11. Qh5 {[%emt 0:07:32]} Nh4 {[%emt 0:06:43]} 12. O-O g6 {[%emt 0:00:51]} 13. Qg4 {[%emt 0:04:32]} h5 {[%emt 0:04:02]} 14. Qe2 {[%emt 0:02:08]} Nf5 {[%emt 0:22:10]} 15. dxc5 {[%emt 0:16:49]} Bxc5 {[%emt 0:04:20]} 16. e4 {[%emt 0:01:36]} Nxg3 {[%emt 0:01:05]} 17. hxg3 {[%emt 0:00:11]} d4 {[%emt 0:00:32]} 18. Nb3 {[%emt 0:02:09]} Bb6 {[%emt 0:01:29]} 19. cxd4 {[%emt 0:02:07]} h4 {[%emt 0:03:06]} 20. Qg4 {[%emt 0:05:08]} hxg3 {[%emt 0:03:25]} 21. Qxg3 {[%emt 0:00:11]} Bc7 {[%emt 0:02:18]} 22. e5 {[%emt 0:01:21]} Qd5 {[%emt 0:10:37]} 23. Bxg6 {[%emt 0:13:19]} O-O-O {[%emt 0:01:06]} 24. Bxf7 {[%emt 0:05:42]} Rdf8 {[%emt 0:00:38]} 25. Bg6 {[%emt 0:01:56]} Ne7 {[%emt 0:01:11]} 26. Nc5 {[%emt 0:04:04]} Rfg8 {[%emt 0:02:39]} 27. Be4 {[%emt 0:01:01]} Qxd4 {[%emt 0:01:25]} 28. Qc3 {[%emt 0:05:44]} Qxc3 {[%emt 0:01:12]} 29. bxc3 {[%emt 0:00:10]} Bxe5 {[%emt 0:00:10]} 30. Bxb7+ {[%emt 0:00:35]} Kc7 {[%emt 0:00:18]} 31. g3 {[%emt 0:00:38]} Nf5 {[%emt 0:10:58]} 32. Bg2 {[%emt 0:04:59]} Rg6 {[%emt 0:05:26]} 33. Rab1 {[%emt 0:04:53]} Nd6 {[%emt 0:02:01]} 34. c4 {[%emt 0:03:42]} Bd4 {[%emt 0:01:57]} 35. Ne4 {[%emt 0:00:09]} Nf5 {[%emt 0:00:37]} 36. Rb3 {[%emt 0:01:47]} Rb8 {[%emt 0:02:28]} 37. Rxb8 {[%emt 0:02:38]} Kxb8 {[%emt 0:00:09]} 38. Rb1+ {[%emt 0:00:06]} Kc7 {[%emt 0:00:26]} 39. Rb3 {[%emt 0:00:07]} Nd6 {[%emt 0:00:50]} 40. Nxd6 {[%emt 0:00:00]} Kxd6 {[%emt 0:00:00]} 41. Rf3 {[%emt 0:08:35]} Kc5 {[%emt 0:01:09]} 42. Bf1 {[%emt 0:00:19]} e5 {[%emt 0:00:25]} 43. Kg2 {[%emt 0:03:54]} Ra6 {[%emt 0:00:29]} 44. g4 {[%emt 0:02:03]} Rxa2 {[%emt 0:00:44]} 45. g5 {[%emt 0:00:32]} e4 {[%emt 0:00:16]} 46. Rf5+ {[%emt 0:00:10]} Kb4 {[%emt 0:01:25]} 47. g6 {[%emt 0:02:11]} e3 {[%emt 0:01:26]} 48. Kf3 {[%emt 0:03:25]} Rxf2+ {[%emt 0:00:38]} 49. Ke4 {[%emt 0:00:04]} Rxf5 {[%emt 0:01:14]} 50. Kxf5 {[%emt 0:00:10]} a5 {[%emt 0:01:07]} 51. Ke4 {[%emt 0:00:27]} Kc5 {[%emt 0:03:29]} 52. g7 {[%emt 0:02:32]} Bxg7 {[%emt 0:00:09]} 53. Kxe3 {[%emt 0:00:04]} Kb4 {[%emt 0:00:34]} 54. Bh3 {[%emt 0:01:16]} a4 {[%emt 0:01:03]} 55. Be6 {[%emt 0:00:16]} Kc5 {[%emt 0:00:19]} 56. Bf5 {[%emt 0:00:16]} a3 {[%emt 0:00:27]} 57. Bb1 {[%emt 0:00:06]} Kb4 {[%emt 0:00:37]} 58. Ba2 {[%emt 0:00:15]} Kc3 59. c5 {[%emt 0:00:13]} Bd4+ {[%emt 0:00:32]} 1/2-1/2